bitfinex-derivatives/quotes_SOLF0:USTF0_20241016
["timestamp","ask_amount","ask_price","bid_price","bid_amount"]
[1729043751450,8.93,154.75,154.71,5.26]
[1729043751655,8.93,154.75,154.69,2.8458]
[1729043751847,8.93,154.75,154.73,3.2315]
[1729043752745,8.93,154.75,154.74,3.2313]
[1729043752949,8.93,154.77,154.74,3.2313]
[1729043753349,8.4906,154.78,154.74,3.2313]
[1729043753350,8.93,154.76,154.74,3.2313]
[1729043754651,8.93,154.76,154.69,11.7758]
[1729043754960,8.93,154.74,154.69,11.7758]
[1729043755159,8.93,154.74,154.69,14.93545659]
[1729043755358,8.93,154.74,154.7,3.2321]
[1729043755554,5.26,154.78,154.71,8.93]
[1729043755774,8.93,154.76,154.69,6.00545659]
[1729043755960,8.93,154.76,154.74,3.2313]
[1729043756655,8.93,154.76,154.75,3.2311]
[1729043757951,8.93,154.77,154.75,3.2311]
[1729043758953,19.4,154.75,154.6,1.0]
[1729043759154,0.99454604,154.74,154.6,1.0]
[1729043759354,8.93,154.67,154.62,8.93]
[1729043759548,8.93,154.67,154.6,4.1648284]
[1729043759752,8.93,154.67,154.61,8.93]
[1729043759951,8.93,154.66,154.61,8.93]
[1729043760150,8.93,154.66,154.61,12.164]
[1729043761560,8.93,154.65,154.61,3.234]
[1729043762750,5.26,154.69,154.62,8.93]
[1729043762950,8.93,154.69,154.63,8.93]
[1729043763656,8.93,154.69,154.63,12.1636]
[1729043764362,12.1624,154.69,154.63,12.1636]
[1729043764857,8.93,154.68,154.63,12.1636]
[1729043765061,8.93,154.68,154.61,5.26]
[1729043765264,12.1628,154.68,154.62,12.1638]
[1729043765466,8.93,154.68,154.62,8.93]
[1729043765763,8.93,154.68,154.64,9.93]
[1729043766162,12.1623,154.7,154.65,3.2332]
[1729043767858,2.7538,154.74,154.67,8.93]
[1729043768160,4.5916,154.74,154.69,3.2323]
[1729043768360,8.93,154.73,154.69,3.2323]
[1729043769162,8.93,154.75,154.68,12.1481195]
[1729043769992,12.1612,154.75,154.68,12.1481195]
[1729043770166,8.93,154.75,154.69,8.93]
[1729043770496,8.93,154.75,154.69,14.19]
[1729043770664,8.93,154.73,154.7,3.2321]
[1729043770875,8.93,154.72,154.66,6.6686]
[1729043771167,8.93,154.72,154.68,3.2325]
[1729043771767,8.93,154.72,154.69,3.2324]
[1729043772266,3.232,154.71,154.66,9.9015]
[1729043772472,8.93,154.72,154.66,15.5986]
[1729043772961,12.1618,154.72,154.68,3.2325]
[1729043773269,8.93,154.72,154.66,1.4086]
[1729043773458,8.93,154.7,154.66,5.26]
[1729043773658,6.6809,154.78,154.67,8.93]
[1729043773659,5.26,154.74,154.67,8.93]
[1729043773964,8.93,154.75,154.69,8.93]
[1729043774165,8.93,154.73,154.69,12.1623]
[1729043774665,12.1616,154.73,154.68,3.2325]
[1729043774874,8.93,154.72,154.68,3.2325]
[1729043776269,12.1618,154.72,154.68,3.2325]
[1729043776772,3.2328,154.67,154.64,1.0]
[1729043777071,6.6817,154.71,154.64,1.0]
[1729043777268,8.93,154.69,154.64,1.0]
[1729043777569,8.93,154.69,154.65,3.2332]
[1729043778067,12.1625,154.69,154.64,13.1634]
[1729043778670,3.233,154.66,154.64,1.0]
[1729043778869,8.93,154.66,154.64,1.0]
[1729043779075,8.93,154.67,154.64,1.0]
[1729043779574,8.93,154.67,154.64,4.2334]
[1729043779976,8.93,154.67,154.64,1.0]
[1729043780480,1.3362,154.7,154.64,1.0]
[1729043780677,8.93,154.73,154.68,3.2325]
[1729043781471,12.1616,154.73,154.68,3.2325]
[1729043785376,8.93,154.73,154.67,8.93]
[1729043785579,2.7153,154.77,154.69,8.93]
[1729043785876,8.93,154.75,154.7,8.93]
[1729043786082,8.93,154.75,154.71,3.2318]
[1729043786673,8.93,154.74,154.71,3.2318]
[1729043789684,12.1613,154.74,154.7,3.2322]
[1729043791089,12.1613,154.74,154.71,3.2319]
[1729043792590,12.1613,154.74,154.7,3.2321]
[1729043793195,12.1613,154.74,154.69,14.19]
[1729043793391,8.93,154.75,154.69,14.19]
[1729043793882,12.1613,154.75,154.71,3.232]
[1729043797091,12.1619,154.72,154.68,3.2324]
[1729043797398,8.93,154.7,154.65,14.19]
[1729043797792,8.93,154.7,154.67,3.2326]
[1729043807104,12.1618,154.72,154.68,3.2324]
[1729043815003,8.93,154.7,154.68,3.2324]
[1729043815406,2.7153,154.77,154.71,3.2319]
[1729043815716,2.7153,154.77,154.69,8.93]
[1729043815717,12.1611,154.76,154.7,8.93]
[1729043815903,8.93,154.76,154.7,8.93]
[1729043816808,8.93,154.76,154.72,3.2316]
[1729043816809,3.2312,154.75,154.72,3.2316]
[1729043820218,2.7153,154.77,154.71,8.93]
[1729043820513,8.93,154.79,154.74,8.93]
[1729043820715,8.93,154.78,154.73,8.93]
[1729043820916,12.1606,154.78,154.74,3.2312]
[1729043823314,3.2306,154.78,154.74,3.2312]
[1729043823515,12.1606,154.78,154.74,3.2312]
[1729043825212,12.1613,154.75,154.72,3.2317]
[1729043827535,12.1609,154.77,154.73,3.2315]
[1729043827837,8.93,154.78,154.73,8.93]
[1729043828120,5.26,154.8,154.7,8.0679]
[1729043828121,3.2302,154.8,154.75,8.93]
[1729043828620,3.2302,154.8,154.76,3.2308]
[1729043830113,12.1603,154.79,154.76,3.2308]
[1729043830958,12.1603,154.79,154.74,8.93]
[1729043830959,3.2308,154.77,154.74,8.93]
[1729043831113,8.93,154.78,154.73,8.93]
[1729043831315,8.93,154.8,154.74,8.93]
[1729043832627,8.93,154.8,154.77,3.2306]
[1729043833824,12.1601,154.8,154.77,3.2306]
[1729043835728,12.1607,154.78,154.75,3.231]
[1729043836333,8.93,154.78,154.74,5.26]
[1729043836527,8.93,154.78,154.74,8.4913]
[1729043837426,12.1606,154.78,154.74,8.4913]
[1729043839726,7.36688859,154.83,154.74,14.19]
[1729043840024,12.1602,154.8,154.76,3.2308]
[1729043841827,12.1608,154.77,154.73,3.2315]
[1729043842130,8.93,154.77,154.73,3.2315]
[1729043842439,12.1608,154.77,154.73,3.2315]
[1729043843128,12.1608,154.77,154.74,3.2313]
[1729043843428,8.93,154.77,154.74,3.2313]
[1729043843630,8.93,154.77,154.73,3.2314]
[1729043843937,8.93,154.79,154.73,8.93]
[1729043844135,12.1605,154.79,154.73,8.93]
[1729043844525,12.1605,154.79,154.75,3.231]
[1729043846026,3.2306,154.78,154.75,3.231]
[1729043849334,3.2303,154.79,154.74,8.93]
[1729043849538,4.1626,154.83,154.76,8.93]
[1729043849748,2.7314,154.83,154.79,8.93]
[1729043850051,8.93,154.85,154.79,8.93]
[1729043850434,12.1594,154.84,154.8,3.2301]
[1729043851741,8.93,154.85,154.82,3.2296]
[1729043852040,1.3683,154.86,154.81,8.93]
[1729043852334,8.93,154.88,154.82,8.93]
[1729043852541,12.1584,154.88,154.84,3.2291]
[1729043853330,8.93,154.86,154.81,8.93]
[1729043853536,12.159,154.86,154.81,8.93]
[1729043854541,8.93,154.83,154.8,5.26]
[1729043855045,8.93,154.83,154.8,8.49]
[1729043855442,12.1596,154.83,154.79,3.2303]
[1729043855637,8.93,154.82,154.78,5.26]
[1729043856341,12.1597,154.82,154.78,8.4904]
[1729043858948,8.93,154.82,154.79,3.2303]
[1729043860353,12.1595,154.83,154.79,3.2303]
[1729043861948,3.2288,154.87,154.81,12.1597]
[1729043862163,6.6617,154.89,154.81,8.93]
[1729043862502,8.93,154.87,154.81,8.93]
[1729043862644,8.93,154.86,154.81,8.93]
[1729043863251,12.1587,154.87,154.83,3.2293]
[1729043863652,8.93,154.87,154.83,3.2293]
[1729043864152,8.93,154.84,154.79,8.93]
[1729043864660,8.93,154.84,154.81,3.2297]
[1729043865155,8.93,154.84,154.79,8.93]
[1729043865359,8.93,154.84,154.82,3.2295]
[1729043868563,12.1589,154.86,154.82,3.2295]
[1729043870167,8.93,154.86,154.82,3.2295]
[1729043870381,3.2291,154.85,154.82,3.2295]
[1729043872366,12.1589,154.86,154.82,3.2295]
[1729043874161,3.2289,154.86,154.82,3.2295]
[1729043874760,3.2287,154.87,154.84,3.2292]
[1729043877864,12.1587,154.87,154.84,3.2292]
[1729043881769,12.1587,154.87,154.82,8.93]
[1729043882069,3.2287,154.87,154.83,8.93]
[1729043882666,3.2287,154.87,154.84,3.229]
[1729043883168,12.1585,154.88,154.85,3.229]
[1729043884365,3.2286,154.87,154.84,3.2292]
[1729043885568,12.1585,154.88,154.85,3.2289]
[1729043889963,4.5361,154.91,154.88,3.2284]
[1729043890269,3.2279,154.91,154.88,3.2284]
[1729043890773,3.2272,154.94,154.91,3.2278]
[1729043891157,17.0429,154.95,154.89,8.93]
[1729043891361,8.93,154.93,154.89,8.93]
[1729043891883,12.1572,154.94,154.9,3.2278]
[1729043892766,2.8729,154.95,154.89,8.93]
[1729043892968,12.1573,154.94,154.9,3.2278]
[1729043893274,8.93,154.94,154.88,8.93]
[1729043893770,3.2275,154.93,154.89,3.2281]
[1729043895967,8.93,154.94,154.89,3.2281]
[1729043896172,4.2276,154.92,154.89,3.2281]
[1729043896676,3.2279,154.91,154.88,12.1583]
[1729043896968,9.93,154.92,154.88,8.93]
[1729043897210,8.93,154.91,154.86,5.24]
[1729043897366,8.93,154.87,154.77,3.19787773]
[1729043897566,6.24,154.92,154.79,8.93]
[1729043897567,8.93,154.84,154.79,8.93]
[1729043897780,8.93,154.83,154.79,5.24]
[1729043897982,8.4888375,154.88,154.77,8.4707]
[1729043897983,12.16,154.81,154.77,8.4707]
[1729043898579,8.93,154.8,154.75,3.231]
[1729043899374,3.2303,154.79,154.75,3.231]
[1729043899579,8.93,154.8,154.75,3.231]
[1729043899765,13.97,154.8,154.74,5.24]
[1729043900372,3.2307,154.77,154.72,6.0393]
[1729043900568,13.97,154.8,154.72,5.24]
[1729043900776,13.97,154.77,154.7,5.24]
[1729043900986,13.97,154.75,154.66,3.23489499]
[1729043901181,13.97,154.73,154.65,2.8001]
[1729043901477,13.97,154.73,154.65,8.0401]
[1729043901780,5.24,154.83,154.71,13.97]
[1729043902073,13.97,154.83,154.74,13.97]
[1729043902279,19.21,154.83,154.74,13.97]
[1729043902980,3.2298,154.82,154.76,3.2309]
[1729043903278,19.21,154.83,154.74,13.97]
[1729043903777,13.97,154.81,154.72,4.0728]
[1729043904084,3.2303,154.79,154.73,3.2315]
[1729043904469,3.2303,154.79,154.74,3.2313]
[1729043904687,3.2303,154.79,154.72,4.0728]
[1729043904977,13.97,154.81,154.71,13.97]
[1729043905176,17.25259323,154.8,154.71,17.2019]
[1729043905379,8.0832,154.79,154.7,5.24]
[1729043905576,3.2309,154.77,154.7,5.24]
[1729043906476,3.2309,154.77,154.72,3.2317]
[1729043906779,13.97,154.78,154.67,13.97]
[1729043906981,13.97,154.76,154.67,19.21]
[1729043907376,3.2314,154.74,154.68,5.24]
[1729043907872,13.97,154.76,154.68,5.24]
[1729043908181,5.24,154.75,154.68,5.24]
[1729043908987,13.97,154.74,154.65,16.7195]
[1729043909280,13.97,154.72,154.64,6.24]
[1729043909586,3.2322,154.7,154.66,3.233]
[1729043913573,13.97,154.7,154.64,1.0]
[1729043914186,3.2328,154.68,154.64,4.2334]
[1729043916287,13.97,154.68,154.64,1.0]
[1729043916488,3.2328,154.67,154.64,1.0]
[1729043916988,13.97,154.69,154.64,1.0]
[1729043917191,3.2326,154.68,154.65,3.2332]
[1729043917490,23.3325,154.71,154.64,1.0]
[1729043917685,3.2325,154.69,154.65,3.2332]
[1729043918197,23.3325,154.71,154.65,3.2332]
[1729043918377,3.2327,154.68,154.64,4.2333]
[1729043921392,3.2324,154.69,154.65,3.2331]
[1729043922694,3.2327,154.68,154.64,4.2333]
[1729043923991,23.3325,154.71,154.64,1.0]
[1729043923992,13.97,154.69,154.64,1.0]
[1729043925395,3.233,154.67,154.64,4.2334]
[1729043926198,3.2326,154.68,154.65,3.2332]
[1729043926691,13.97,154.69,154.66,3.2329]
[1729043926890,23.3325,154.71,154.66,3.2329]
[1729043927397,13.97,154.73,154.68,3.2326]
[1729043927707,19.21,154.73,154.68,3.2326]
[1729043928393,3.2319,154.72,154.68,3.2326]
[1729043930402,19.21,154.73,154.68,3.2326]
[1729043930610,13.97,154.73,154.68,3.2326]
[1729043930898,19.21,154.73,154.68,3.2326]
[1729043931400,3.232,154.71,154.68,3.2326]
[1729043931998,19.21,154.73,154.69,3.2322]
[1729043931999,3.2318,154.72,154.69,3.2322]
[1729043932392,13.97,154.73,154.64,10.4418]
[1729043933106,17.2016,154.73,154.64,10.4418]
[1729043933397,19.21,154.75,154.65,13.97]
[1729043933698,22.4413,154.75,154.71,3.2318]
[1729043934302,19.21,154.75,154.71,3.2318]
[1729043935499,3.2313,154.74,154.71,3.2318]
[1729043941500,3.2313,154.75,154.72,3.2317]
[1729043941713,2.7444,154.77,154.68,8.40112042]
[1729043941896,2.7444,154.77,154.73,3.2314]
[1729043941897,3.2308,154.77,154.73,3.2314]
[1729043942324,5.24,154.79,154.69,13.97]
[1729043942500,3.2306,154.78,154.74,3.2312]
[1729043942909,5.24,154.79,154.74,3.2312]
[1729043943803,3.2306,154.78,154.73,3.2315]
[1729043944005,3.2306,154.78,154.7,1.382]
[1729043944606,3.2306,154.78,154.74,3.2312]
[1729043947504,3.2306,154.78,154.7,1.382]
[1729043948311,3.2306,154.78,154.7,2.8087]
[1729043948610,3.2306,154.78,154.74,3.2312]
[1729043950414,3.2307,154.77,154.74,3.2312]
[1729043951710,3.231,154.76,154.73,3.2315]
[1729043958516,3.2312,154.75,154.72,3.2317]
[1729043958718,13.97,154.78,154.68,5.24]
[1729043958914,13.97,154.76,154.68,5.24]
[1729043959521,13.97,154.76,154.7,3.232]
[1729043959522,3.2315,154.74,154.7,3.232]
[1729043961224,5.24,154.79,154.69,13.97]
[1729043961926,3.2307,154.77,154.74,3.2312]
[1729043962222,18.1108,154.82,154.72,5.24]
[1729043962430,5.24,154.81,154.72,5.24]
[1729043962724,5.24,154.81,154.73,1.4398]
[1729043963023,3.2302,154.8,154.76,3.2307]
[1729043963726,3.2303,154.79,154.76,3.2307]
[1729043965627,3.2302,154.8,154.76,3.2308]
[1729043966027,3.2302,154.8,154.73,1.4398]
[1729043966632,3.2302,154.8,154.76,3.2308]
[1729043966929,3.2302,154.8,154.73,1.4398]
[1729043968431,3.2302,154.8,154.76,3.2308]
[1729043968831,3.2299,154.81,154.73,1.4398]
[1729043969037,3.2299,154.81,154.77,3.2305]
[1729043969333,3.2299,154.81,154.73,1.4398]
[1729043969334,3.2306,154.78,154.73,1.4398]
[1729043969936,3.2306,154.78,154.75,3.2311]
[1729043970340,3.2305,154.78,154.72,6.6871]
[1729043970538,3.2305,154.78,154.74,3.2312]
[1729043973329,17.18160806,154.8,154.72,6.6871]
[1729043973528,3.2304,154.79,154.75,3.231]
[1729043974233,3.2302,154.8,154.76,3.2307]
[1729043975847,3.2299,154.81,154.78,3.2304]
[1729043977247,3.2304,154.79,154.72,6.6871]
[1729043977847,8.94,154.77,154.76,3.2309]
[1729043978558,12.1704,154.79,154.76,3.2309]
[1729043979647,3.2304,154.79,154.76,3.2309]
[1729043980449,12.1704,154.79,154.76,3.2309]
[1729043986048,8.94,154.79,154.73,8.94]
[1729043986247,8.94,154.79,154.77,3.2307]
[1729043987656,15.37199387,154.8,154.77,3.2307]
[1729043988757,12.14179387,154.8,154.74,8.94]
[1729043989059,10.3079,154.82,154.77,8.94]
[1729043989567,6.6717,154.85,154.8,8.94]
[1729043989754,15.6117,154.85,154.8,8.94]
[1729043990158,3.2294,154.84,154.81,3.2299]
[1729043990952,18.8408,154.85,154.81,3.2299]
[1729043991159,8.94,154.85,154.8,8.94]
[1729043991456,14.18,154.87,154.81,8.94]
[1729043992566,17.4086,154.87,154.84,3.2291]
[1729043993064,12.1686,154.87,154.84,3.2291]
[1729043994666,12.1686,154.87,154.83,3.2294]
[1729043996057,3.2288,154.86,154.83,3.2294]
[1729043997060,8.94,154.84,154.78,1.4357]
[1729043997266,12.1694,154.84,154.81,3.2298]
[1729043997865,8.94,154.85,154.82,3.2296]
[1729044000061,8.94,154.83,154.81,3.2298]
[1729044000363,8.94,154.83,154.78,5.22]
[1729044000568,8.94,154.83,154.8,3.23]
[1729044001570,8.94,154.83,154.81,3.2299]
[1729044001961,12.1693,154.84,154.81,3.2299]
[1729044002664,8.94,154.87,154.83,3.2294]
[1729044002866,1.4152,154.89,154.83,8.94]
[1729044002867,8.94,154.88,154.83,8.94]
[1729044003166,1.4152,154.89,154.85,8.94]
[1729044003167,8.94,154.89,154.85,8.94]
[1729044003467,12.1684,154.89,154.85,12.1689]
[1729044003658,8.94,154.89,154.85,8.94]
[1729044003859,8.94,154.89,154.86,3.2287]
[1729044004060,8.94,154.87,154.82,5.22]
[1729044004261,11.21933531,154.91,154.82,5.22]
[1729044004262,8.94,154.84,154.82,5.22]
[1729044004475,8.94,154.84,154.81,3.2298]
[1729044005465,12.1695,154.83,154.8,3.23]
[1729044005665,8.94,154.81,154.8,3.23]
[1729044006471,12.1695,154.83,154.8,3.23]
[1729044007456,8.94,154.84,154.81,3.2297]
[1729044007657,8.94,154.86,154.81,8.94]
[1729044007859,5.22,154.87,154.78,19.17]
[1729044008064,3.2295,154.84,154.8,3.2301]
[1729044008568,13.95,154.85,154.77,1.4336]
[1729044008781,13.95,154.78,154.69,1.4338]
[1729044009076,4.1382,154.84,154.72,13.95]
[1729044009269,4.1382,154.84,154.74,13.95]
[1729044009270,1.4025,154.84,154.74,13.95]
[1729044009473,15.59311128,154.87,154.77,13.95]
[1729044009668,3.2289,154.86,154.82,3.2295]
[1729044010674,8.4484,154.88,154.81,3.2297]
[1729044010967,8.4484,154.88,154.79,13.95]
[1729044011172,8.4484,154.88,154.8,1.3683]
[1729044011376,5.22,154.88,154.83,3.2294]
[1729044011573,5.22,154.88,154.81,22.42534802]
[1729044011776,5.22,154.88,154.81,23.75424802]
[1729044012262,4.597,154.89,154.81,23.75424802]
[1729044012469,1.3687,154.89,154.81,23.75424802]
[1729044012668,9.8505,154.9,154.81,23.75424802]
[1729044013179,9.8505,154.9,154.85,3.2289]
[1729044013774,13.95,154.89,154.81,1.3289]
[1729044014074,6.6225,154.9,154.78,5.22]
[1729044014075,13.95,154.87,154.78,5.22]
[1729044014675,3.2289,154.86,154.81,3.2297]
[1729044015076,3.2289,154.86,154.78,5.22]
[1729044015378,13.95,154.87,154.78,5.22]
[1729044015678,13.95,154.89,154.78,19.17]
[1729044015881,13.95,154.89,154.79,2.6552]
[1729044016073,13.95,154.89,154.8,13.95]
[1729044016471,13.95,154.91,154.82,13.95]
[1729044016677,19.17,154.91,154.83,5.22]
[1729044016978,13.95,154.91,154.83,5.22]
[1729044018089,13.95,154.87,154.79,7.8752]
[1729044018480,17.1783,154.89,154.84,3.2291]
[1729044018887,13.95,154.89,154.84,3.2291]
[1729044019081,17.1782,154.89,154.86,3.2288]
[1729044019281,17.1782,154.89,154.8,17.13745132]
[1729044019489,13.95,154.89,154.8,13.95]
[1729044019880,3.2286,154.88,154.84,3.2292]
[1729044023587,3.2287,154.87,154.83,3.2294]
[1729044023787,13.95,154.89,154.83,3.2294]
[1729044024086,13.95,154.87,154.83,3.2294]
[1729044025592,3.2289,154.86,154.83,3.2294]
[1729044026788,5.22,154.88,154.84,3.2291]
[1729044027984,13.95,154.9,154.85,3.2289]
[1729044028175,5.22,154.9,154.81,5.22]
[1729044028989,8.4481,154.9,154.81,5.22]
[1729044029392,5.22,154.9,154.8,17.13595788]
[1729044029697,3.2283,154.89,154.85,3.2289]
[1729044031286,5.22,154.91,154.81,5.22]
[1729044031589,10.887,154.92,154.88,3.2283]
[1729044031787,7.6593,154.92,154.82,15.3808]
[1729044032297,3.2279,154.91,154.87,3.2286]
[1729044032494,7.6593,154.92,154.82,15.3808]
[1729044032793,13.95,154.91,154.83,5.22]
[1729044033090,3.2284,154.89,154.85,3.2289]
[1729044033495,3.228,154.9,154.87,3.2286]
[1729044033694,21.6093,154.92,154.83,19.17]
[1729044034314,1.0,154.92,154.83,19.17]
[1729044034590,1.0,154.92,154.85,3.2289]
[1729044034791,1.0,154.92,154.85,5.22]
[1729044035189,4.2277,154.92,154.89,3.2282]
[1729044036186,4.2277,154.92,154.88,3.2284]
[1729044037501,4.2277,154.92,154.85,5.22]
[1729044037502,4.2276,154.92,154.89,3.2282]
[1729044037806,4.2276,154.92,154.85,5.22]
[1729044037807,1.0,154.92,154.87,13.95]
[1729044038100,1.0,154.92,154.88,4.70088377]
[1729044038286,1.0,154.92,154.89,5.22]
[1729044038803,1.0,154.92,154.91,3.2278]
[1729044041201,18.1776,154.92,154.86,1.4202]
[1729044041404,14.95,154.92,154.85,5.22]
[1729044042512,3.228,154.91,154.83,5.22]
[1729044042915,3.228,154.91,154.86,3.2286]
[1729044043409,14.95,154.92,154.82,4.1186]
[1729044043610,3.2285,154.88,154.84,3.2292]
[1729044044001,13.95,154.88,154.81,98.01496463]
[1729044044311,13.95,154.84,154.77,1.333]
[1729044044511,13.95,154.84,154.8,3.2301]
[1729044044711,19.17,154.86,154.77,1.333]
[1729044045008,22.399,154.86,154.81,3.2297]
[1729044045315,22.399,154.86,154.77,1.333]
[1729044046208,5.22,154.86,154.77,1.333]
[1729044046411,5.22,154.86,154.77,6.553]
[1729044046412,13.95,154.84,154.77,6.553]
[1729044046918,13.95,154.84,154.78,3.2303]
[1729044046919,3.2296,154.83,154.78,3.2303]
[1729044047611,3.2296,154.83,154.79,3.2303]
[1729044047803,13.95,154.84,154.77,1.333]
[1729044048013,4.5876,154.85,154.77,1.333]
[1729044048317,4.5876,154.85,154.8,3.2299]
[1729044048701,18.5376,154.85,154.8,3.2299]
[1729044050415,3.2301,154.8,154.75,3.231]
[1729044050806,19.17,154.81,154.75,3.231]
[1729044051111,13.95,154.78,154.75,3.231]
[1729044052412,13.95,154.82,154.73,5.22]
[1729044052620,13.95,154.82,154.73,19.17]
[1729044053206,13.95,154.82,154.78,3.2305]
[1729044055817,1.3585,154.85,154.75,13.95]
[1729044056114,1.3585,154.85,154.76,1.4314]
[1729044056316,1.3585,154.85,154.77,5.22]
[1729044056717,15.3076,154.86,154.81,3.2297]
[1729044057026,6.6263,154.87,154.77,19.17]
[1729044057415,6.6263,154.87,154.83,3.2293]
[1729044057615,1.3259,154.91,154.81,5.22]
[1729044057921,3.2282,154.89,154.84,3.2291]
[1729044058119,19.17,154.9,154.84,3.2291]
[1729044058319,19.17,154.9,154.81,5.22]
[1729044058517,3.2287,154.87,154.83,3.2294]
[1729044060015,13.95,154.88,154.81,5.22]
[1729044060626,3.2283,154.89,154.86,3.2288]
[1729044061223,19.17,154.9,154.85,3.229]
[1729044061423,3.2285,154.88,154.81,5.22]
[1729044061726,19.17,154.9,154.82,3.2297]
[1729044061727,13.95,154.85,154.82,3.2297]
[1729044062525,13.95,154.88,154.83,3.2294]
[1729044063518,3.2289,154.86,154.82,3.2296]
[1729044064017,17.1789,154.86,154.82,3.2296]
[1729044067326,17.1789,154.86,154.83,3.2294]
[1729044067632,13.95,154.86,154.78,5.22]
[1729044067926,19.17,154.86,154.82,3.2296]
[1729044069427,3.2291,154.85,154.82,3.2296]
[1729044070822,22.3989,154.86,154.82,3.2296]
[1729044071827,22.3989,154.86,154.76,6.6514]
[1729044071828,13.95,154.84,154.76,6.6514]
[1729044072312,3.2295,154.83,154.78,3.2304]
[1729044072512,3.2295,154.83,154.76,6.6514]
[1729044072722,13.95,154.8,154.74,1.4373]
[1729044072925,13.95,154.8,154.75,3.2311]
[1729044072926,3.2303,154.79,154.75,3.2311]
[1729044073524,13.95,154.78,154.75,3.2311]
[1729044076524,17.1801,154.8,154.76,3.2309]
[1729044076822,19.17,154.82,154.73,5.22]
[1729044077422,3.2299,154.81,154.75,3.231]
[1729044077728,19.17,154.82,154.73,5.22]
[1729044078333,2.7272,154.85,154.75,13.95]
[1729044078630,13.95,154.87,154.79,13.95]
[1729044078820,16.7189,154.9,154.8,5.22]
[1729044079020,16.7189,154.9,154.81,13.95]
[1729044079327,19.9469,154.9,154.81,15.3076]
[1729044080130,16.7189,154.9,154.81,15.3076]
[1729044081030,16.7189,154.9,154.86,3.2287]
[1729044081522,3.2282,154.89,154.84,3.2291]
[1729044082243,3.2282,154.89,154.81,1.3576]
[1729044082429,3.2282,154.89,154.85,3.229]
[1729044083339,16.7189,154.9,154.86,3.2287]
[1729044083634,14.95,154.92,154.84,5.22]
[1729044083827,18.1777,154.92,154.84,5.22]
[1729044084026,18.1777,154.92,154.87,3.2285]
[1729044084231,14.95,154.92,154.87,3.2285]
[1729044084629,3.228,154.91,154.86,3.2288]
[1729044085938,3.228,154.91,154.87,3.2284]
[1729044086240,1.0,154.92,154.88,5.22]
[1729044087432,1.0,154.92,154.91,3.2278]
[1729044092050,1.0,154.96,154.95,3.227]
[1729044095146,1.0,154.96,154.93,3.2272]
[1729044095346,1.0,154.96,154.9,5.22]
[1729044095640,4.2268,154.96,154.9,5.22]
[1729044096149,4.2268,154.96,154.92,3.2275]